Cogmind - Beta 9.4 @@@ ROGUE MODE // 2020.02.02 @ 03:35:16 // AFD2018/Launchers Player: Judas Result: Destroyed self with Improved Grenade Launcher Performance ------------- Evolutions (2) 1000 Regions Visited (5) 1000 Robots Destroyed (51) 255 Value Destroyed (1419) 1419 Prototype IDs (1) 20 Alien Tech Used (0) 0 Bonus (266) 266 TOTAL SCORE: 3960 Bonus ------- High Alert Combat Kills 226 Follower Combat Kills 133 Friendly Fire -93 Cogmind --------- Core Integrity 0/550 Matter 102/300 Energy 19/100 System Corruption 1% Temperature Cool (9) Movement Core (150) Ox2 Location -8/Storage Parts ------- > --- POWER (1) -------- (None) > --- PROPULSION (3) --- (None) > --- UTILITY (5) ------ Advanced Heat Sink > --- WEAPON (2) ------- Improved Grenade Launcher > --- INVENTORY (4) ---- Improved Ion Engine Mini Grenade Launcher Peak State ------------ > --- POWER ------------ Improved Ion Engine > --- PROPULSION ------- Improved Aluminum Leg Improved Aluminum Leg > --- UTILITY ---------- Advanced Heat Sink Medium Matter Pod > --- WEAPON ----------- Shock Bomb Launcher Improved Grenade Launcher > --- INVENTORY -------- Improved Ion Engine Mini Grenade Launcher Improved Grenade Launcher Missile Launcher [Rating: 19] Favorites ----------- Power Light Ion Engine Engine Light Ion Engine Propulsion Aluminum Leg Leg Aluminum Leg Wheel Wheel Utility Medium Matter Pod Device Terrain Scanner Storage Medium Matter Pod Weapon Grenade Launcher Launcher Grenade Launcher Build | -11 -10 -10 -9 -8 -8 ------- Run | Scr Mat Min Mat Mat Sto Slots Evolved 4 | . . . 2 2 . Power . | . . . . . . Propulsion 1 | . . . 1 . . Utility 3 | . . . 1 2 . Weapon . | . . . . . . Parts Attached 34 | 1 4 1 8 16 4 Power 6 | . 1 . 1 4 . Engine 6 | . 1 . 1 4 . Core . | . . . . . . Reactor . | . . . . . . Propulsion 8 | 1 1 1 3 2 . Treads . | . . . . . . Leg 5 | . . . 3 2 . Wheel 3 | 1 1 1 . . . Hover . | . . . . . . Flight . | . . . . . . Utility 5 | . 2 . 1 2 . Device 4 | . 1 . 1 2 . Storage 1 | . 1 . . . . Processor . | . . . . . . Hackware . | . . . . . . Protection . | . . . . . . Artifact . | . . . . . . Weapon 15 | . . . 3 8 4 Energy Gun . | . . . . . . Energy Cannon . | . . . . . . Ballistic Gun . | . . . . . . Ballistic Cannon . | . . . . . . Launcher 15 | . . . 3 8 4 Special Weapon . | . . . . . . Impact Weapon . | . . . . . . Slashing Weapon . | . . . . . . Piercing Weapon . | . . . . . . Special Melee Weapon . | . . . . . . Unidentified Prototypes 1 | . . . . 1 . Parts Lost 23 | . . 2 1 13 7 Power 5 | . . . 1 3 1 Propulsion 7 | . . 2 . 3 2 Utility 4 | . . . . 3 1 Weapon 7 | . . . . 4 3 Highest Loss Streak 12 | . . 2 1 12 7 Average Slot Usage (%) 76 | . 84 97 74 67 59 Engine 10 | . 11 14 9 7 8 Leg 11 | . . . 16 20 16 Wheel 9 | . 25 25 . . . Device 13 | . 13 14 14 14 9 Storage 10 | . 6 14 11 9 8 Launcher 21 | . 28 28 22 14 17 Naked Turns . | . . . . . . Heaviest Build 22 | 6 12 12 14 22 22 Greatest Support 30 | 10 26 26 30 30 26 Greatest Overweight (x) 3 | 1 . 3 3 1 2 Average Overweight (x) . | . . . . . . Largest Inventory Capacity 4 | 4 4 4 4 4 4 Average Capacity 4 | 4 4 4 4 4 4 Most Carried 4 | 4 4 4 4 4 4 Average Carried 3 | 4 4 4 3 3 3 Final Capacity 4 | 4 4 4 4 4 4 Final Carried 4 | 4 4 4 4 4 2 Class Distribution -------------------- 56% | Mutant 43% | Scavenger-Mutant Dominant Class ---------------- Mutant | -10/Materials Mutant | -10/Mines Scavenger-Mutant | -9/Materials Scavenger-Mutant | -8/Materials Scavenger-Mutant | -8/Storage Resources | -11 -10 -10 -9 -8 -8 ----------- Run | Scr Mat Min Mat Mat Sto Matter Collected 878 | 48 200 30 242 356 2 Remotely . | . . . . . . Salvage Created 1015 | 48 258 115 132 382 80 Parts 58 | 3 10 16 7 20 2 Haulers Intercepted . | . . . . . . Recyclers Shooed 1 | . 1 . . . . Parts Field Recycled . | . . . . . . Retrieved Matter . | . . . . . . Parts Self-Destructed . | . . . . . . Prevented . | . . . . . . Kills | -11 -10 -10 -9 -8 -8 ------- Run | Scr Mat Min Mat Mat Sto Combat Hostiles Destroyed 42 | . 6 11 3 19 3 AOE 42 | . 6 11 3 19 3 Classes Destroyed 10 | 2 2 1 2 3 . Worker 3 | . . 1 2 . . Tunneler 1 | 1 . . . . . Recycler 4 | 1 3 . . . . Watcher 1 | . . . 1 . . Swarmer 20 | . 3 9 . 7 1 Grunt 17 | . 3 2 2 8 2 Brawler 2 | . . . 1 1 . Duelist 1 | . . . . 1 . Sentry 1 | . . . . 1 . Hunter 1 | . . . . 1 . Best Kill Streak 15 | 2 4 4 3 15 3 Combat Bots Only 15 | . 3 3 2 15 3 Max Kills in Single Turn 6 | 1 4 4 2 6 2 Gunslinging . | . . . . . . Exploded 6 | . 3 3 1 6 2 Melee . | . . . . . . Uniques/NPCs Destroyed . | . . . . . . Combat | -11 -10 -10 -9 -8 -8 -------- Run | Scr Mat Min Mat Mat Sto Damage Taken 2169 | . 85 194 85 1241 564 Core 627 | . 8 39 29 415 136 Absorbed by Shields . | . . . . . . Core Remaining (%) 91 | 100 . 81 92 . . Volleys Fired 43 | 3 6 5 5 15 9 Largest 2 | 2 2 2 2 2 2 Hottest 72 | 60 60 60 63 72 72 Shots Fired 67 | 5 8 10 10 19 15 Gun . | . . . . . . Cannon . | . . . . . . Launcher 67 | 5 8 10 10 19 15 Special . | . . . . . . Kinetic . | . . . . . . Thermal . | . . . . . . Explosive 55 | 5 8 10 8 15 9 Electromagnetic 12 | . . . 2 4 6 Robot Hit Streak 11 | 2 3 5 7 10 11 Robot Miss Streak 2 | 1 2 2 1 2 2 Penetration Max . | . . . . . . Secondary Targets . | . . . . . . Shots Hit Robots 45 | 2 5 6 7 14 11 Core Hits 98 | 4 13 16 14 41 10 Critical Hits . | . . . . . . Critical Kills . | . . . . . . Critical Parts Destroyed . | . . . . . . Melee Attacks . | . . . . . . Impact . | . . . . . . Slashing . | . . . . . . Piercing . | . . . . . . Sneak Attacks . | . . . . . . Combat Hostiles . | . . . . . . Follow-up Attacks . | . . . . . . Damage Inflicted 4541 | 128 571 636 724 1593 889 Guns . | . . . . . . Cannons . | . . . . . . Explosions 4529 | 128 559 636 724 1593 889 Melee . | . . . . . . Ramming 12 | . 12 . . . . Kinetic . | . . . . . . Thermal 32 | . . . . 32 . Explosive 4049 | 128 559 636 656 1393 677 Electromagnetic 448 | . . . 68 168 212 Impact . | . . . . . . Slashing . | . . . . . . Piercing . | . . . . . . Highest Corruption 2 | . 2 2 . 1 1 Average Corruption 1 | . 2 2 . 1 1 Corruption Purged . | . . . . . . Effects 5 | . . 3 . . 2 Message Errors 2 | . . 2 . . . Energy Discharges 2 | . . 1 . . 1 Targeting Errors 1 | . . . . . 1 Overload Shots . | . . . . . . Overflow Damage 192 | . 13 . 15 85 79 Projectiles . | . . . . . . Explosions 192 | . 13 . 15 85 79 Melee . | . . . . . . Knockbacks . | . . . . . . Impact . | . . . . . . Kinetic . | . . . . . . Secondary . | . . . . . . Self-Inflicted Damage 483 | . 29 80 39 267 68 Shots 18 | . 1 5 1 8 3 Rammed 3 | . 3 . . . . Targets Rammed 3 | . 3 . . . . Kicked . | . . . . . . Crushed . | . . . . . . Highest Temperature 37 | . 6 15 3 37 . Average Temperature 12 | . 4 13 3 16 . Received Heat Transfer 654 | . 27 33 18 387 189 Siege Activations . | . . . . . . Robots Corrupted . | . . . . . . Combat Hostiles . | . . . . . . Parts Fried . | . . . . . . Impact Corruptions . | . . . . . . Robots Melted . | . . . . . . Combat Hostiles . | . . . . . . Parts Melted . | . . . . . . Heat Transferred . | . . . . . . Parts Sabotaged . | . . . . . . Parts Stolen . | . . . . . . Parts Stripped . | . . . . . . Power Chain Reactions 1 | . . . . 1 . Missiles Intercepted . | . . . . . . Alert | -11 -10 -10 -9 -8 -8 ------- Run | Scr Mat Min Mat Mat Sto Peak Influence 798 | 10 201 357 397 798 480 Average Influence 316 | 3 107 260 256 532 359 Maximum Alert Level 3 | . 1 1 1 3 2 Low Security (%) 33 | 100 93 20 44 20 . Level 1 43 | . 6 79 55 . 85 Level 2 12 | . . . . 38 14 Level 3 10 | . . . . 40 . Level 4 . | . . . . . . Level 5 . | . . . . . . High Security . | . . . . . . Max Security . | . . . . . . Squads Dispatched 7 | . 1 . . 3 3 Investigation . | . . . . . . Extermination . | . . . . . . Reinforcement 5 | . 1 . . 2 2 Assault 1 | . . . . 1 . Garrison 1 | . . . . . 1 Intercept . | . . . . . . Construction Impeded 1 | . . . . . 1 Haulers Reinforced . | . . . . . . Stealth | -11 -10 -10 -9 -8 -8 --------- Run | Scr Mat Min Mat Mat Sto Distress Signals 3 | . 1 . 1 . 1 Communications Jammed . | . . . . . . Distress Signals . | . . . . . . Times Spotted 69 | . 10 8 12 23 16 Peak Tracking Total 13 | . 4 3 3 13 9 Tactical Retreats 1 | . . . . . 1 Traps | -11 -10 -10 -9 -8 -8 ------- Run | Scr Mat Min Mat Mat Sto Traps Triggered 1 | . . . . . 1 Indirectly . | . . . . . . Trap Hack Attempts . | . . . . . . Triggered . | . . . . . . Disarmed . | . . . . . . Reprogrammed . | . . . . . . Reused . | . . . . . . Traps Extracted . | . . . . . . Installed . | . . . . . . Triggered . | . . . . . . Machines | -11 -10 -10 -9 -8 -8 ---------- Run | Scr Mat Min Mat Mat Sto Machines Disabled 11 | . . 1 1 5 4 Max in Single Turn 2 | . . 1 1 2 2 Garrison Access 1 | . . . . 1 . Machines Sabotaged . | . . . . . . Garrisons Compromised . | . . . . . . Overloaded Fab Kills . | . . . . . . Fab Network Shutdowns . | . . . . . . Hacking | -11 -10 -10 -9 -8 -8 --------- Run | Scr Mat Min Mat Mat Sto Machines Accessed 2 | . . . . . 2 Terminals 2 | . . . . . 2 Fabricators . | . . . . . . Repair Stations . | . . . . . . Recycling Units . | . . . . . . Scanalyzers . | . . . . . . Garrison Access . | . . . . . . Total Hacks 3 | . . . . . 3 Successful 2 | . . . . . 2 Failed 1 | . . . . . 1 Catastrophic . | . . . . . . Database Lockouts . | . . . . . . Manual . | . . . . . . Terminals 3 | . . . . . 3 Fabricators . | . . . . . . Repair Stations . | . . . . . . Recycling Units . | . . . . . . Scanalyzers . | . . . . . . Garrison Access . | . . . . . . Terminal Hacks 2 | . . . . . 2 Open Door 2 | . . . . . 2 Fabricator Hacks . | . . . . . . Repair Station Hacks . | . . . . . . Recycling Unit Hacks . | . . . . . . Scanalyzer . | . . . . . . Garrison Access Hacks . | . . . . . . Unauthorized Hacks . | . . . . . . Terminals . | . . . . . . Fabricators . | . . . . . . Repair Stations . | . . . . . . Recycling Units . | . . . . . . Scanalyzers . | . . . . . . Garrison Access . | . . . . . . Data Cores Recovered . | . . . . . . Used . | . . . . . . Hacking Detections 1 | . . . . . 1 Full Trace Events . | . . . . . . Feedback Events . | . . . . . . Feedback Blocked . | . . . . . . Robot Schematics Acquired . | . . . . . . Robots Built . | . . . . . . Matter . | . . . . . . Time . | . . . . . . Total Robot Build Rating . | . . . . . . Part Schematics Acquired . | . . . . . . Parts Built . | . . . . . . Matter . | . . . . . . Time . | . . . . . . Total Part Build Rating . | . . . . . . Parts Repaired . | . . . . . . Time . | . . . . . . Parts Recycled . | . . . . . . Recycled Matter . | . . . . . . Retrieved Matter . | . . . . . . Retrieved Components . | . . . . . . Parts Scanalyzed . | . . . . . . Part Schematics Acquired . | . . . . . . Parts Damaged . | . . . . . . Bothacking | -11 -10 -10 -9 -8 -8 ------------ Run | Scr Mat Min Mat Mat Sto Used RIF Installer . | . . . . . . Robots Hacked . | . . . . . . Non-combat . | . . . . . . Combat . | . . . . . . Robot Hacks Applied . | . . . . . . Relay Couplers Released 2 | . . . . 2 . Machine Destruction 2 | . . . . 2 . Robots Rewired . | . . . . . . Allies Hacked . | . . . . . . Hacks Repelled . | . . . . . . Allies | -11 -10 -10 -9 -8 -8 -------- Run | Scr Mat Min Mat Mat Sto Total Allies 3 | . . 3 . . . Largest Group 3 | . . 3 3 2 . Highest-Rated Group 40 | . . 40 40 32 . Highest-Rated Ally 16 | . . 16 16 16 . Total Orders . | . . . . . . Ally Attacks 18 | . . . 17 1 . Total Damage 177 | . . . 177 . . Kills 5 | . . . 5 . . Allies Corrupted . | . . . . . . Allies Melted . | . . . . . . Intel | -11 -10 -10 -9 -8 -8 ------- Run | Scr Mat Min Mat Mat Sto Robot Analysis Total . | . . . . . . Derelict Logs Recovered . | . . . . . . Drone Launches . | . . . . . . Drone Recoveries . | . . . . . . Exploration | -11 -10 -10 -9 -8 -8 ------------- Run | Scr Mat Min Mat Mat Sto Turns Passed 1132 | 39 147 244 216 283 203 Spaces Moved 865 | 32 120 244 138 186 145 Core 100 | 23 . 5 60 9 3 Treads . | . . . . . . Legs 397 | . . . 78 177 142 Wheels 368 | 9 120 239 . . . Hover . | . . . . . . Flight . | . . . . . . Fastest Speed 50 | 80 80 90 100 100 50 Average Speed 109 | 94 87 92 136 119 119 Slowest Speed 200 | 100 90 200 200 120 150 Overloaded Moves . | . . . . . . Propulsion Burnouts . | . . . . . . Robots Hopped . | . . . . . . Cave-ins Triggered . | . . . . . . Exploration Rate (%) 26 | 3 32 52 23 19 30 Regions Visited 5 Branch Regions 2 Pre-discovered Areas . | . . . . . . Known Exits Taken . | . . . . . . Unknown Exits Taken 5 | 1 1 1 1 1 . Scrap Searched . | . . . . . . Spaces Dug . | . . . . . . Terrain Destroyed 353 | 18 46 98 63 88 40 Melee . | . . . . . . Projectile . | . . . . . . AOE 353 | 18 46 98 63 88 40 Actions | -11 -10 -10 -9 -8 -8 --------- Run | Scr Mat Min Mat Mat Sto Total 979 | 35 152 254 154 224 160 Wait 26 | . 20 4 1 1 . Move 860 | 31 119 243 137 185 145 Hop . | . . . . . . Pick Up 4 | . . . . 3 1 Fast Attach 19 | 1 4 . 5 8 1 Attach 6 | . . . . 4 2 Detach . | . . . . . . Swap 10 | . . 1 3 5 1 Drop 8 | . . 1 3 3 1 Fire 43 | 3 6 5 5 15 9 Melee . | . . . . . . Ram 3 | . 3 . . . . Kick . | . . . . . . Crush . | . . . . . . Escape Stasis . | . . . . . . Rewire . | . . . . . . Trap . | . . . . . . Miscellaneous . | . . . . . . Route ------- -11/Scrapyard -10/Materials (discovered 2 exits: [*Min x2]) -10/Mines -9/Materials -8/Materials -8/Storage History --------- Turn | Location | Event 1 | -11/Scrapyard | Discovered new exit (range 3) 40 | -11/Scrapyard | Entered Materials 129 | -10/Materials | Discovered new exit (range 6) 150 | -10/Materials | Discovered new exit (range 13) 187 | -10/Materials | Entered Mines 290 | -10/Mines | Assisted by bots powering up and referring to "LRC-V3" 317 | -10/Mines | Build established: Mutant 410 | -10/Mines | Discovered new exit (range 5) 431 | -10/Mines | Entered Materials 431 | -9/Materials | Accompanied by 3 allies 431 | -9/Materials | Evolved 2 slots: Propulsion x1, Utility x1 624 | -9/Materials | Discovered new exit (range 5) 647 | -9/Materials | Entered another Materials area 647 | -8/Materials | Accompanied by 2 allies 647 | -8/Materials | Evolved 2 slots: Utility x2 799 | -8/Materials | Discovered new exit (range 16) 814 | -8/Materials | Core integrity fell below 50% 844 | -8/Materials | Destroyed 15 combat bots 845 | -8/Materials | Lost 12 parts (3p3n2u4w) 930 | -8/Materials | Entered Storage 1106 | -8/Storage | Garrison activated, responded to threat 1118 | -8/Storage | Core integrity fell below 20% 1133 | -8/Storage | Destroyed self with Improved Grenade Launcher Last Messages --------------- 01122_ Imp. Grenade Launcher destroyed. 01122_ U-05 Engineer lays Concrete. 01123_ Med. Matter Pod destroyed. 01123_ U-05 Engineer builds a Wall. 01123_ U-05 Engineer lays Concrete. 01123_ U-05 Engineer builds a Wall. 01124_ The unstable cave ceiling collapses. 01124_ U-05 Engineer builds a Wall. 01125_ The unstable cave ceiling collapses. 01127_ U-05 Engineer lays Concrete. 01127_ Missile Launcher destroyed. 01127_ U-05 Engineer builds a Door. 01128_ U-05 Engineer lays Concrete. 01128_ Acquired 2 matter. 01129_ U-05 Engineer lays Concrete. 01130_ U-05 Engineer builds a Wall. 01130_ Transfer Shaft disabled. 01131_ ALERT: Construction progress impeded, dispatching reinforcements to local area. 01133_ Shock Bomb Launcher destroyed. Map ----- +----------------------------------------------------+ | | | | | | | | | | | | | | | ??????????????????????????????????????????????? | | ??????????????????????????????????????????????? | | ??????????????????????????????????????????????? | | ??????????????????????????????????????????????? | | ??????????????????????????????????????????????? | | ?????????????????????#"G??????????????????????? | | ?????????????????#####" ???##?????????????????? | | ?????????????????# g ?? #?????????????????? | | ???????????????### % g "?????????????????? | | ???????????????# = """ ""????????????????? | | ?????????????? a""" T"????????????????? | | ??????????????? "" "?????????????????? | | ?????????????? % "?????????????????? | | ?????????????? os ??????????????????? | | ?????????????" ??????????????????? | | ?????????????" ##+ ######+##??????????? | | ??????????????????# #u u #??????????? | | ?????????????????##### #??????????? | | ?????????? Y u @ #??????????? | | ???????????????##### ### #??????????? | | ????????????????# Y ## #??????????? | | ????????????????## ## #??????????? | | ?????????????????# """ ## #??###?????? | | ?????????????????# """ ## # ]]#?????? | | ?????????????????# """ """ ## + ]]#?????? | | ?????????????????############### # ]]#?????? | | ???????????????####### #??###?????? | | ????????? #??????????? | | ????????????????###### #??????????? | | ?????????????????????# ###########??????????? | | ?????????????????????# #] #???????????? | | ?????????????????????# # ] #???????????? | | ?????????????????????# # #???????????? | | ?????????????????????# # #???????????? | | ?????????????????????# #?? ] ] ????????????? | | ?????????????????????# #####+#+###??????????? | | ?????????????????????# # "]]#?????? | | ?????????????##??????# + ]]#?????? | | ????????????##"T"##### # "]]#?????? | | ????????????# # ###########??????????? | | ????????????# """ + #????????????????????? | | ????????????# """ # #????????????????????? | | ????????????? """ # #????????????????????? | +----------------------------------------------------+ Best States ------------- Heat Dissipation 55 Energy Generation 12 Energy Capacity 265 Matter Stores 272 Matter Capacity 400 Sight Range 16 Terrain Scan Range 14 Terrain Scan Density 10 Evasion (%) 44 Item Schematics ----------------- None Robot Schematics ------------------ None Fabricated ------------ Nothing Alien Tech Used ----------------- None Achievements -------------- None Challenges ------------ None Game ------ Seed PulseRestorationBeamcaster Manual? 0 Play Time 00:17:17 Cumulative 46.6 hours Start 2020.02.02 @ 03:20:23 End 2020.02.02 @ 03:35:16 Sessions 1 Manual Loads 0 Difficulty Rogue Special Mode AFD2018/Launchers Game No. 86 Rogue 86 Adventurer 0 Explorer 0 Win Type - Total 0 Types 0/0/0/0/0/0/0 Lore% 27 Gallery% 38 Achievement% 28 Wizard Run 0 Options --------- ASCII 0 Keyboard 0 Movement Mouse Keybinds 0 Fullscreen 2 Font 18/SmallcapsGlow Map View 76x50 Tactical HUD 1 Map Filters NONE Filters NONE Steam 1 RUN: 3d150be2-da5c-4a31-aa96-0321de857052